fUSD/lending_fUSD_20240129
["ID","MTS","AMOUNT","RATE_DAILY","PERIOD"]
[312961159,1706544646370,-500.0,0.000279,2]
[312961160,1706544646379,-500.0,0.000279,2]
[312961161,1706544646575,-500.0,0.000279,2]
[312961162,1706544646585,-500.0,0.000279,2]
[312961163,1706544646595,-500.0,0.000279,2]
[312961164,1706544646606,-500.0,0.000279,2]
[312961165,1706544646617,-500.0,0.000279,2]
[312961166,1706544646626,-500.0,0.000279,2]
[312961167,1706544646635,-150.0,0.000279,2]
[312961168,1706544646645,-500.0,0.000279,2]
[312961169,1706544646654,-500.0,0.000279,2]
[312961170,1706544646663,-500.0,0.000279,2]
[312961171,1706544646673,-500.0,0.000279,2]
[312961172,1706544646682,-500.0,0.000279,2]
[312961173,1706544646691,-500.0,0.000279,2]
[312961174,1706544646700,-500.0,0.000279,2]
[312961175,1706544646709,-500.0,0.000279,2]
[312961176,1706544646718,-500.0,0.000279,2]
[312961177,1706544646728,-500.0,0.000279,2]
[312961178,1706544646737,-500.0,0.000279,2]
[312961179,1706544646747,-500.0,0.000279,2]
[312961180,1706544646755,-500.0,0.000279,2]
[312961181,1706544646765,-500.0,0.000279,2]
[312961182,1706544646774,-500.0,0.000279,2]
[312961183,1706544646784,-500.0,0.000279,2]
[312961184,1706544646793,-500.0,0.000279,2]
[312961185,1706544646802,-500.0,0.000279,2]
[312961186,1706544646812,-500.0,0.000279,2]
[312961187,1706544646820,-500.0,0.000279,2]
[312961188,1706544646830,-500.0,0.000279,2]
[312961189,1706544646839,-500.0,0.000279,2]
[312961190,1706544646848,-500.0,0.000279,2]
[312961191,1706544646857,-500.0,0.000279,2]
[312961192,1706544646866,-500.0,0.000279,2]
[312961193,1706544646876,-500.0,0.000279,2]
[312961194,1706544646885,-500.0,0.000279,2]
[312961195,1706544646895,-500.0,0.000279,2]
[312961196,1706544646904,-500.0,0.000279,2]
[312961197,1706544646914,-500.0,0.000279,2]
[312961198,1706544646923,-500.0,0.000279,2]
[312961199,1706544646933,-500.0,0.000279,2]
[312961200,1706544646943,-500.0,0.000279,2]
[312961201,1706544646952,-500.0,0.000279,2]
[312961202,1706544646961,-500.0,0.000279,2]
[312961203,1706544646971,-500.0,0.000279,2]
[312961204,1706544646981,-500.0,0.000279,2]
[312961205,1706544646992,-500.0,0.000279,2]
[312961206,1706544647001,-500.0,0.000279,2]
[312961207,1706544647010,-500.0,0.000279,2]
[312961208,1706544647019,-500.0,0.000279,2]
[312961209,1706544647029,-500.0,0.000279,2]
[312961210,1706544647038,-500.0,0.000279,2]
[312961211,1706544647046,-500.0,0.000279,2]
[312961212,1706544647056,-500.0,0.000279,2]
[312961213,1706544647065,-500.0,0.000279,2]
[312961214,1706544647074,-500.0,0.000279,2]
[312961215,1706544647084,-500.0,0.000279,2]
[312961216,1706544647094,-500.0,0.000279,2]
[312961217,1706544647103,-500.0,0.000279,2]
[312961218,1706544647112,-500.0,0.000279,2]
[312961219,1706544647123,-500.0,0.000279,2]
[312961220,1706544647132,-500.0,0.000279,2]
[312961221,1706544647142,-500.0,0.000279,2]
[312961222,1706544647151,-500.0,0.000279,2]
[312961223,1706544647160,-500.0,0.000279,2]
[312961224,1706544647169,-500.0,0.000279,2]
[312961225,1706544647178,-500.0,0.000279,2]
[312961226,1706544647187,-500.0,0.000279,2]
[312961227,1706544647196,-500.0,0.000279,2]
[312961228,1706544647206,-500.0,0.000279,2]
[312961229,1706544647215,-500.0,0.000279,2]
[312961230,1706544647224,-500.0,0.000279,2]
[312961231,1706544647233,-500.0,0.000279,2]
[312961232,1706544647242,-500.0,0.000279,2]
[312961233,1706544647251,-500.0,0.000279,2]
[312961234,1706544647260,-500.0,0.000279,2]
[312961235,1706544647269,-1578.86036686,0.000279,2]
[312961236,1706544647592,-13498.59176978,0.000279,2]
[312961237,1706544647602,-577.57,0.00027974,2]
[312961238,1706544647611,-150.25,0.00027974,2]
[312961239,1706544647623,-693.37142157,0.00028,2]
[312961240,1706544647634,-481.65426688,0.00028,2]
[312961241,1706544647643,-206.30065775,0.00028,2]
[312961242,1706544647653,-1557.12129046,0.0002811,3]
[312961243,1706544647663,-500.0,0.0002816,2]
[312961244,1706544647672,-500.0,0.0002816,2]
[312961245,1706544647681,-500.0,0.0002816,2]
[312961246,1706544647691,-500.0,0.0002816,2]
[312961247,1706544647701,-500.0,0.0002816,2]
[312961248,1706544647711,-500.0,0.0002816,2]
[312961249,1706544647720,-500.0,0.0002816,2]
[312961250,1706544647730,-500.0,0.0002816,2]
[312961251,1706544647740,-500.0,0.0002816,2]
[312961252,1706544647750,-500.0,0.0002816,2]
[312961253,1706544647760,-500.0,0.0002816,2]
[312961254,1706544647770,-500.0,0.0002816,2]
[312961255,1706544647779,-500.0,0.0002816,2]
[312961256,1706544647789,-500.0,0.0002816,2]
[312961257,1706544647798,-500.0,0.0002816,2]
[312961258,1706544647808,-500.0,0.0002816,2]
[312961259,1706544647817,-500.0,0.0002816,2]
[312961260,1706544647827,-500.0,0.0002816,2]
[312961261,1706544647836,-500.0,0.0002816,2]
[312961262,1706544647846,-500.0,0.0002816,2]
[312961263,1706544647856,-500.0,0.0002816,2]
[312961264,1706544647868,-500.0,0.0002816,2]
[312961265,1706544647877,-500.0,0.0002816,2]
[312961266,1706544647886,-500.0,0.0002816,2]
[312961267,1706544647895,-500.0,0.0002816,2]
[312961268,1706544647904,-500.0,0.0002816,2]
[312961269,1706544647913,-500.0,0.0002816,2]
[312961270,1706544647921,-500.0,0.0002816,2]
[312961271,1706544647930,-500.0,0.0002816,2]
[312961272,1706544647939,-500.0,0.0002816,2]
[312961273,1706544647949,-500.0,0.0002816,2]
[312961274,1706544647957,-500.0,0.0002816,2]
[312961275,1706544647968,-500.0,0.0002816,2]
[312961276,1706544647976,-500.0,0.0002816,2]
[312961277,1706544647988,-500.0,0.0002816,2]
[312961278,1706544647997,-500.0,0.0002816,2]
[312961279,1706544648006,-500.0,0.0002816,2]
[312961280,1706544648016,-500.0,0.0002816,2]
[312961281,1706544648025,-500.0,0.0002816,2]
[312961282,1706544648034,-500.0,0.0002816,2]
[312961283,1706544648043,-500.0,0.0002816,2]
[312961284,1706544648052,-500.0,0.0002816,2]
[312961285,1706544648062,-500.0,0.0002816,2]
[312961286,1706544648072,-500.0,0.0002816,2]
[312961287,1706544648082,-174.64,0.00028224,2]
[312961288,1706544648092,-577.57,0.00028262,2]
[312961289,1706544648102,-150.25,0.00028262,2]
[312961290,1706544648111,-1367.0,0.000284,2]
[312961291,1706544648123,-800.0,0.00028521,2]
[312961292,1706544648133,-462.0,0.00028539,2]
[312961293,1706544648142,-577.57,0.00028551,2]
[312961294,1706544648152,-150.25,0.00028551,2]
[312961295,1706544648161,-168.93,0.00028595,2]
[312961296,1706544648170,-1781.35,0.00028695,2]
[312961297,1706544648180,-167.7,0.00028713,2]
[312961298,1706544648189,-155.0,0.00028767,2]
[312961299,1706544648199,-205.0,0.0002881,8]
[312961300,1706544648209,-577.57,0.00028839,2]
[312961301,1706544648219,-150.25,0.00028839,2]
[312961302,1706544648228,-650.0,0.00029,3]
[312961303,1706544648238,-577.57,0.00029128,2]
[312961304,1706544648247,-150.25,0.00029128,2]
[312961305,1706544648256,-154.85,0.00029224,2]
[312961306,1706544648266,-166.84,0.0002931,2]
[312961307,1706544648276,-577.57,0.00029416,2]
[312961308,1706544648285,-150.25,0.00029416,2]
[312961309,1706544648295,-2071.43,0.00029435,2]
[312961310,1706544648304,-157.48445838,0.000295,3]
[312961311,1706544648314,-200.0,0.00029524,2]
[312961312,1706544648324,-1000.0,0.0002953,2]
[312961313,1706544648334,-577.57,0.00029704,2]
[312961314,1706544648343,-150.25,0.00029704,2]
[312961315,1706544648352,-1781.35,0.00029719,2]
[312961316,1706544648362,-200.0,0.0002976,3]
[312961317,1706544648371,-1700.0,0.000299,10]
[312961318,1706544648381,-577.57,0.00029993,2]
[312961319,1706544648390,-150.25,0.00029993,2]
[312961320,1706544648400,-174.41982976,0.00029999,2]
[312961321,1706544648409,-300.0,0.00029999,2]
[312961322,1706544648419,-300.0,0.00029999,2]
[312961323,1706544648428,-300.0,0.00029999,2]
[312961324,1706544648437,-300.0,0.00029999,2]
[312961325,1706544648446,-300.0,0.00029999,2]
[312961326,1706544648456,-300.0,0.00029999,2]
[312961327,1706544648466,-300.0,0.00029999,2]
[312961328,1706544648475,-182.11081411,0.00029999,2]
[312961329,1706544648484,-150.0,0.00029999,2]
[312961330,1706544648494,-50000.0,0.0003,2]
[312961331,1706544648503,-2864.46701738,0.0003,2]
[312961332,1706544648513,-1153.23797473,0.0003,2]
[312961333,1706544648522,-103672.59049962,0.0003,4]
[312961334,1706544648547,-16882.978515,0.0003,4]
[312961335,1706544649354,-202.18313352,0.00022899,2]
[312961336,1706544649363,-51.55269168,0.00022899,2]
[312961343,1706544650024,-418.87172383,0.00022899,2]
[312961344,1706544650033,-2534.76152238,0.00022899,2]
[312961345,1706544650043,-420.7037701,0.00022998,2]
[312961346,1706544650052,-4359.42927597,0.00022998,2]
[312961347,1706544650062,-15006.23370763,0.0003,4]
[312961350,1706544650101,-4630.11828708,0.0003,4]
[312961351,1706544650130,-5063.87123416,0.0003,4]
[312961352,1706544650140,-2787.49495476,0.0003,4]
[312961353,1706544650260,-737.98,0.000229,2]
[312961354,1706544650271,-24450.09304582,0.0003,4]
[312961355,1706544650312,-891.25504155,0.0003,4]
[312961356,1706544650584,1183.70804756,0.00021216,2]
[312961357,1706544654959,157.9404551,0.00021216,2]
[312961359,1706545006695,150.0,0.00027,7]
[312961360,1706545078992,3154.85646052,0.00027,7]
[312961361,1706545084845,205.0,0.00026651,7]
[312961362,1706545096995,3197.05049607,0.00027,7]
[312961363,1706545244237,155.0,0.0002025,2]
[312961364,1706545258667,168.56157661,5e-05,2]
[312961365,1706545262260,155.0,0.0002025,2]
[312961366,1706545278258,155.0,0.0002025,2]
[312961367,1706545290787,155.0,0.0002025,2]
[312961368,1706545291863,155.0,0.0002025,2]
[312961369,1706545291940,155.0,0.0002025,2]
[312961370,1706545294225,155.0,0.0002025,2]
[312961371,1706545294472,155.0,0.0002,2]
[312961372,1706545295746,235.37393543,0.0002025,2]
[312961373,1706545296681,155.0,0.0002025,2]
[312961374,1706545296858,155.0,0.0002025,2]
[312961375,1706545297257,155.0,0.0002025,2]
[312961376,1706545297285,1035.68155273,0.0002025,2]
[312961377,1706545297483,155.0,0.0002025,2]
[312961378,1706545298182,155.0,0.0002025,2]
[312961379,1706545298300,155.0,0.0002025,2]
[312961380,1706545298883,155.0,0.0002025,2]
[312961381,1706545301195,157.12521251,0.0002025,2]
[312961382,1706545301576,267.30688343,0.0002025,2]
[312961383,1706545303530,155.0,0.0002025,2]
[312961384,1706545306878,155.0,0.0002025,2]
[312961385,1706545307310,155.0,0.0002025,2]
[312961386,1706545309765,199.60880723,0.0002025,2]
[312961387,1706545311676,155.0,0.0002025,2]
[312961388,1706545312499,155.0,0.0002025,2]
[312961389,1706545312741,155.0,0.0002025,2]
[312961390,1706545312855,155.0,0.0002025,2]
[312961391,1706545313262,155.0,0.0002025,2]
[312961392,1706545313290,163.71228794,0.0002025,2]
[312961393,1706545313492,155.0,0.0002025,2]
[312961394,1706545314313,156.54689303,0.0002025,2]
[312961395,1706545315541,173.30185032,0.0002025,2]
[312961396,1706545316206,155.0,0.0002025,2]
[312961397,1706545316921,155.0,0.0002025,2]
[312961398,1706545319549,157.12521251,0.0002025,2]
[312961399,1706545321542,155.0,0.0002025,2]
[312961400,1706545322884,155.0,0.0002025,2]
[312961401,1706545325330,155.0,0.0002025,2]
[312961402,1706545327681,155.0,0.0002025,2]
[312961403,1706545330854,155.0,0.0002025,2]
[312961404,1706545331266,155.0,0.0002025,2]
[312961405,1706545331490,155.0,0.0002025,2]
[312961406,1706545332245,164.1984089,0.0002025,2]
[312961407,1706545334873,309.95731837,0.0002025,2]
[312961408,1706545336213,155.0,0.0002025,2]
[312961409,1706545336687,155.20448562,0.0002025,2]
[312961410,1706545337550,155.30019509,0.0002025,2]
[312961411,1706545338983,155.0,0.0002025,2]
[312961412,1706545343209,-154.5491711,0.00022363,2]
[312961413,1706545343252,-2340.16708044,0.00022455,2]
[312961414,1706545343494,-710.48,0.00022456,2]
[312961415,1706545343522,-330.0054,0.00022463,2]
[312961416,1706545343548,-2464.79834846,0.00022463,2]
[312961417,1706545344021,190.78931201,0.0002025,2]
[312961418,1706545345197,157.12521251,0.0002025,2]
[312961419,1706545348896,155.0,0.0002025,2]
[312961420,1706545351490,155.0,0.0002025,2]
[312961421,1706545353272,155.0,0.0002025,2]
[312961422,1706545356216,186.38902313,0.0002025,2]
[312961423,1706545361207,157.12521251,0.0002025,2]
[312961424,1706545364794,155.0,0.0002025,2]
[312961425,1706545368883,156.01643056,0.0002025,2]
[312961426,1706545369270,155.0,0.0002025,2]
[312961427,1706545369528,155.0,0.0002025,2]
[312961428,1706545382804,155.0,0.0002025,2]
[312961429,1706545385466,157.12521251,0.0002025,2]
[312961430,1706545387663,155.0,0.0002025,2]
[312961431,1706545409211,157.12521251,0.0002025,2]
[312961440,1706545431209,226.80582163,0.0002025,2]
[312961441,1706545444680,205.0,0.00025926,7]
[312961442,1706545448547,-205.0,0.00022141,2]
[312961443,1706545448568,-150.0,0.00022462,2]
[312961444,1706545448589,-300.0,0.00022462,2]
[312961445,1706545448610,-870.47745154,0.00022463,2]
[312961446,1706545448630,-729.73,0.00022463,2]
[312961447,1706545448651,-721.4,0.00022463,2]
[312961448,1706545448671,-719.54,0.00022463,2]
[312961449,1706545448692,-303.85254846,0.00022463,2]
[312961450,1706545564917,154.94,0.00027,7]
[312961451,1706545671934,-1560.11138696,0.00022462,2]
[312961452,1706545671955,-417.90745154,0.00022463,2]
[312961453,1706545671977,-710.54,0.00022463,2]
[312961454,1706545671997,-736.81,0.00022463,2]
[312961455,1706545672017,-724.42,0.00022523,2]
[312961456,1706545672040,-724.32,0.0002255,2]
[312961457,1706545672060,-125.8911615,0.00022564,2]
[312961458,1706545682041,175.99,0.00016712,2]
[312961475,1706545832213,-593.2888385,0.00022564,2]
[312961476,1706545832222,-158.38308018,0.00022785,2]
[312961477,1706545832231,-679.00123914,0.00022898,2]
[312961478,1706545832243,-267.5,0.00022898,2]
[312961479,1706545832255,-353.59158333,0.00022898,2]
[312961480,1706545832264,-422.08327997,0.00022899,2]
[312961481,1706545832274,-281.27567579,0.00022899,2]
[312961482,1706545832284,-300.0,0.00022998,2]
[312961483,1706545832293,-300.0,0.00022999,2]
[312961484,1706545832303,-300.0,0.00022999,2]
[312961485,1706545832312,-300.0,0.00022999,2]
[312961486,1706545832324,-300.0,0.00022999,2]
[312961487,1706545832333,-300.0,0.00022999,2]
[312961488,1706545832346,-300.0,0.00022999,2]
[312961489,1706545832355,-300.0,0.00022999,2]
[312961490,1706545832365,-300.0,0.00022999,2]
[312961491,1706545832374,-195.44200308,0.00022999,2]
[312961492,1706545832383,-205.0,0.00023033,2]
[312961493,1706545832393,-3253.0,0.000231,2]
[312961494,1706545832403,-200.0,0.00023104,2]
[312961495,1706545832412,-773.95,0.00023133,2]
[312961496,1706545832421,-2340.65745783,0.00023189,2]
[312961497,1706545832433,-304.7976795,0.00023189,2]
[312961498,1706545832460,-1758.15843224,0.00023189,2]
[312961499,1706545832472,-474.6688742,0.00023189,2]
[312961500,1706545832482,-695.69402603,0.00023189,2]
[312961501,1706545832497,-709.57283364,0.00023189,2]
[312961502,1706545832509,-500.40069656,0.00023189,2]
[312961503,1706545832518,-544.35,0.00023189,2]
[312961504,1706545832527,-7437.0,0.000232,2]
[312961505,1706545832536,-499.99,0.000232,2]
[312961506,1706545832545,-250.0,0.00023286,2]
[312961507,1706545832554,-177.16,0.0002329,2]
[312961508,1706545832563,-688.8,0.00023364,2]
[312961509,1706545832571,-2000.0,0.00023367,2]
[312961510,1706545832580,-4585.17,0.00023441,2]
[312961511,1706545832591,-1977.64,0.00023511,3]
[312961512,1706545832600,-168.93,0.00023563,2]
[312961513,1706545832609,-1159.79,0.00023617,2]
[312961514,1706545832619,-250.0,0.00023629,2]
[312961515,1706545832628,-1647.99,0.00023696,2]
[312961516,1706545832637,-1103.73,0.00023769,2]
[312961517,1706545832646,-2016.28,0.0002383,2]
[312961518,1706545832655,-156.0704384,0.000243,2]
[312961519,1706545832664,-1277.64,0.00024384,2]
[312961520,1706545832673,-250.0,0.00024658,2]
[312961521,1706545832682,-177.16,0.00024843,2]
[312961522,1706545832692,-9934.7875,0.0002488,2]
[312961523,1706545832701,-2500.0,0.0002488,2]
[312961524,1706545832711,-200.0,0.00024962,2]
[312961525,1706545832720,-420.0,0.00024966,2]
[312961526,1706545832729,-1297.06292971,0.00024976,2]
[312961527,1706545832738,-1787.18818733,0.0002498,2]
[312961528,1706545833113,-800.15126418,0.0002498,2]
[312961529,1706545833126,-211912.66054849,0.0002498,2]
[312961530,1706545833135,-23900.0,0.00024993,2]
[312961531,1706545833144,-3011.67714353,0.00025,2]
[312961532,1706545833153,-192.29,0.00025064,2]
[312961533,1706545833163,-1193.41,0.00025064,2]
[312961534,1706545833172,-4525.89430921,0.00025067,2]
[312961535,1706545833181,-500.0,0.00025076,2]
[312961536,1706545833194,-150.0,0.00025077,2]
[312961537,1706545833204,-208.0,0.00025077,2]
[312961538,1706545833213,-16860.123,0.00025077,2]
[312961539,1706545833222,-754.395,0.00025077,2]
[312961540,1706545833231,-13266.025,0.00025077,2]
[312961541,1706545833240,-885.355,0.00025077,2]
[312961542,1706545833249,-284.782,0.00025077,2]
[312961543,1706545833258,-205.0,0.00025087,5]
[312961544,1706545833267,-500.0,0.00025136,2]
[312961545,1706545833276,-2118.905,0.00025327,2]
[312961546,1706545833286,-3659.9084,0.00025327,2]
[312961547,1706545833295,-1103.73,0.00025413,2]
[312961548,1706545833306,-5620.0,0.00025425,2]
[312961549,1706545833315,-544.35,0.00025453,2]
[312961550,1706545833326,-323.59857709,0.0002565,2]
[312961551,1706545833336,-150.0,0.000259,2]
[312961552,1706545833350,-150.0,0.00026079,2]
[312961553,1706545833359,-244.69,0.00026099,2]
[312961554,1706545833368,-177.16,0.00026395,2]
[312961555,1706545833377,-543.43,0.00026575,2]
[312961556,1706545833388,-960.0,0.00026698,2]
[312961557,1706545833398,-169.00136356,0.00026973,2]
[312961558,1706545833407,-156.57702525,0.00026996,2]
[312961559,1706545833417,-2599.8421,0.00027,2]
[312961560,1706545833426,-200.0,0.00027,2]
[312961561,1706545833435,-260.17747455,0.00027,2]
[312961562,1706545833445,-155.89776905,0.00027,2]
[312961563,1706545833454,-577.57329415,0.00027,2]
[312961564,1706545833464,-178.42715293,0.00027,2]
[312961565,1706545833473,-155.0,0.00027,2]
[312961566,1706545833483,-302.70821447,0.00027,2]
[312961567,1706545833493,-4000.0,0.00027,2]
[312961568,1706545833503,-1103.73,0.00027057,2]
[312961569,1706545833512,-587.0,0.00027102,2]
[312961570,1706545833522,-205.0,0.00027141,8]
[312961571,1706545833531,-10137.0,0.00027237,2]
[312961572,1706545833540,-165.82,0.00027397,2]
[312961573,1706545833554,-154.54917109,0.00027632,2]
[312961574,1706545833563,-1905.67,0.00027671,2]
[312961575,1706545833573,-165.82,0.00027686,2]
[312961576,1706545833582,-523.8010228,0.00027703,2]
[312961577,1706545833594,-544.35,0.00027717,2]
[312961578,1706545833604,-326771.74343769,0.0002779,2]
[312961579,1706545833621,-8010.72331645,0.0002779,2]
[312961580,1706545833632,-5812.70538814,0.0002779,2]
[312961581,1706545833643,-1441.79731702,0.0002779,2]
[312961582,1706545833659,-295738.4985194,0.0002779,2]
[312961583,1706545833670,-56898.67320415,0.0002779,2]
[312961584,1706545833686,-890.07115902,0.0002779,2]
[312961589,1706545834203,-403.36145789,0.0002779,2]
[312961591,1706545834215,-578.10578071,0.0002779,2]
[312961627,1706545839618,-1215.0,0.00025077,2]
[312961628,1706545839628,-29070.45889455,0.0002779,2]
[312961629,1706545839637,-192.29,0.00027803,2]
[312961630,1706545839647,-1297.06292967,0.00027894,3]
[312961631,1706545839656,-19176.38800721,0.000279,2]
[312961632,1706545839665,-177.16,0.00027948,2]
[312961633,1706545839675,-165.82,0.00027974,2]
[312961634,1706545839684,-165.82,0.00028262,2]
[312961635,1706545839694,-165.82,0.00028551,2]
[312961636,1706545839703,-1905.67,0.00028695,2]
[312961637,1706545839713,-1103.73,0.00028701,2]
[312961638,1706545839723,-622.17405158,0.00028795,2]
[312961639,1706545839732,-165.82,0.00028839,2]
[312961640,1706545839742,-165.82,0.00029128,2]
[312961641,1706545839751,-167.94,0.0002915,2]
[312961642,1706545839760,-205.0,0.00029195,11]
[312961643,1706545839769,-165.82,0.00029416,2]
[312961644,1706545839779,-398.0,0.0002942,2]
[312961645,1706545839788,-7999.99,0.0002968,6]
[312961646,1706545839798,-165.82,0.00029704,2]
[312961647,1706545839808,-1905.67,0.00029719,2]
[312961648,1706545839817,-150.0,0.00029725,2]
[312961649,1706545839827,-150.0,0.00029726,2]
[312961650,1706545839836,-150.0,0.00029726,2]
[312961651,1706545839847,-150.0,0.00029729,2]
[312961652,1706545839856,-150.0,0.00029731,2]
[312961653,1706545839865,-150.0,0.00029731,2]
[312961654,1706545839874,-150.0,0.00029733,2]
[312961655,1706545839885,-229.58564176,0.00029736,2]
[312961656,1706545839894,-150.0,0.00029738,2]
[312961657,1706545839903,-390.22628193,0.00029742,2]
[312961658,1706545839912,-150.0,0.00029755,2]
[312961659,1706545839922,-150.0,0.00029775,2]
[312961660,1706545839932,-150.0,0.00029776,2]
[312961661,1706545839941,-150.0,0.00029786,2]
[312961662,1706545839951,-150.0,0.0002979,2]
[312961663,1706545839960,-150.0,0.00029793,2]
[312961664,1706545839969,-300.0,0.00029813,2]
[312961665,1706545839980,-150.0,0.00029854,2]
[312961666,1706545839990,-150.0,0.00029859,2]
[312961667,1706545839999,-150.0,0.00029874,2]
[312961668,1706545840008,-150.0,0.00029882,2]
[312961670,1706545840017,-150.0,0.00029886,2]
[312961671,1706545840027,-310.37285162,0.00029887,2]
[312961673,1706545840036,-150.0,0.00029887,2]
[312961674,1706545840045,-150.0,0.00029897,2]
[312961675,1706545840054,-1535.5237,0.00029898,2]
[312961676,1706545840063,-153.56755624,0.00029899,2]
[312961677,1706545840073,-1486.305,0.000299,2]
[312961678,1706545840082,-2618.49925714,0.000299,2]
[312961679,1706545840092,-150.0,0.00029912,2]
[312961680,1706545840102,-150.0,0.00029923,2]
[312961681,1706545840111,-300.0,0.00029923,2]
[312961682,1706545840121,-150.0,0.00029925,2]
[312961683,1706545840130,-150.0,0.00029935,2]
[312961684,1706545840139,-150.0,0.00029943,2]
[312961685,1706545840148,-150.0,0.00029957,2]
[312961686,1706545840158,-300.0,0.00029965,2]
[312961687,1706545840167,-150.0,0.00029979,2]
[312961688,1706545840176,-150.0,0.0002998,2]
[312961689,1706545840186,-544.35,0.00029981,2]
[312961690,1706545840195,-150.0,0.00029988,2]
[312961691,1706545840204,-165.82,0.00029993,2]
[312961692,1706545840214,-934.50089976,0.00029995,2]
[312961693,1706545840223,-301.0509071,0.00029996,2]
[312961694,1706545840233,-897.5672899,0.00029997,2]
[312961695,1706545840243,-400.0,0.00029998,5]
[312961696,1706545840253,-827.81825132,0.00029998,2]
[312961697,1706545840264,-3838.65600986,0.00029998,2]
[312961698,1706545840277,-54263.66119503,0.00029998,2]
[312961699,1706545840288,-24487.74966265,0.00029998,2]
[312961700,1706545840298,-201.3561641,0.00029999,2]
[312961701,1706545840309,-167.68703765,0.00029999,2]
[312961702,1706545840318,-445.2195435,0.00029999,2]
[312961703,1706545840331,-17767.54116431,0.00029999,2]
[312961704,1706545840340,-31068.10267297,0.0003,4]
[312961705,1706545840354,-98676.38055852,0.0003,4]
[312961706,1706545840363,-155.0,0.0003,2]
[312961707,1706545840373,-7087.76108151,0.0003,4]
[312961708,1706545840382,-693.5979328,0.0003,2]
[312961709,1706545840391,-73066.26381624,0.0003,4]
[312961710,1706545840401,-19965.47161405,0.0003,4]
[312961711,1706545840413,-90855.34568231,0.0003,4]
[312961712,1706545840422,-150.0,0.0003,7]
[312961713,1706545840432,-460.88689783,0.0003,2]
[312961714,1706545840441,-256.69655446,0.0003,4]
[312961715,1706545840450,-9662.59760279,0.0003,2]
[312961716,1706545840460,-2875.39166323,0.0003,2]
[312961717,1706545840471,-124.60833677,0.0003,2]
[312961718,1706545840480,-150.0,0.0003,2]
[312961719,1706545840490,-150.0,0.0003,2]
[312961720,1706545840500,-3000.0,0.0003,2]
[312961721,1706545840509,-200.0,0.0003,2]
[312961722,1706545840518,-1150.0,0.0003,2]
[312961723,1706545840527,-2019.85017474,0.0003,2]
[312961724,1706545840536,-2019.85017474,0.0003,2]
[312961725,1706545840545,-2019.85017474,0.0003,2]
[312961726,1706545840554,-2019.85017474,0.0003,2]
[312961727,1706545840563,-2019.85017474,0.0003,2]
[312961728,1706545840572,-2019.85017474,0.0003,2]
[312961729,1706545840582,-2019.85017474,0.0003,2]
[312961731,1706545840592,-2019.85017474,0.0003,2]
[312961732,1706545840602,-2019.85017474,0.0003,2]
[312961733,1706545840611,-2019.85017474,0.0003,2]
[312961734,1706545840620,-2019.85017474,0.0003,2]